[Event "Late-Titled-Tuesday-Blitz-April-02-2024"]
[Site "Chess.com"]
[Date "2024.04.02"]
[Round "11"]
[White "BogdanDeac"]
[Black "Zhigalko_Sergei"]
[Result "1-0"]
[WhiteElo "3088"]
[BlackElo "2869"]
[TimeControl "180+1"]
[EndTime "16:04:55 PDT"]
[Termination "BogdanDeac won on time"]

1. d4 {[%clk 0:03:00.9]} 1... Nf6 {[%clk 0:02:56]} 2. c4 {[%clk 0:03:01.2]} 2...
e6 {[%clk 0:02:56.4]} 3. Nc3 {[%clk 0:03:01]} 3... Bb4 {[%clk 0:02:56.8]} 4. Qc2
{[%clk 0:03:01.6]} 4... O-O {[%clk 0:02:56.8]} 5. e4 {[%clk 0:03:01.8]} 5... d5
{[%clk 0:02:56.5]} 6. e5 {[%clk 0:03:02.2]} 6... Ne4 {[%clk 0:02:57.1]} 7. Bd3
{[%clk 0:03:02.6]} 7... c5 {[%clk 0:02:57.4]} 8. Nf3 {[%clk 0:03:03.1]} 8...
cxd4 {[%clk 0:02:56.3]} 9. Nxd4 {[%clk 0:03:04]} 9... Nd7 {[%clk 0:02:55.4]} 10.
Bf4 {[%clk 0:03:04.6]} 10... Ndc5 {[%clk 0:02:55.4]} 11. O-O {[%clk 0:03:04.3]}
11... Bxc3 {[%clk 0:02:55.7]} 12. bxc3 {[%clk 0:03:04.2]} 12... Bd7 {[%clk
0:02:56.4]} 13. cxd5 {[%clk 0:03:04.1]} 13... Ba4 {[%clk 0:02:56.2]} 14. Nb3
{[%clk 0:01:31.4]} 14... Nxd3 {[%clk 0:02:09.4]} 15. Qxd3 {[%clk 0:01:30.1]}
15... Qxd5 {[%clk 0:02:09.9]} 16. Qe3 {[%clk 0:01:18.5]} 16... Qc4 {[%clk
0:02:06.7]} 17. Rac1 {[%clk 0:00:59.3]} 17... Rac8 {[%clk 0:01:52.5]} 18. Na5
{[%clk 0:00:51.5]} 18... Qa6 {[%clk 0:01:43.6]} 19. Nb3 {[%clk 0:00:45.6]} 19...
Qc4 {[%clk 0:01:14.5]} 20. Na5 {[%clk 0:00:36.1]} 20... Qc5 {[%clk 0:00:55.1]}
21. Nxb7 {[%clk 0:00:28.5]} 21... Qxe3 {[%clk 0:00:53.8]} 22. Bxe3 {[%clk
0:00:28.8]} 22... Nxc3 {[%clk 0:00:53.1]} 23. Rfe1 {[%clk 0:00:25.7]} 23... Nxa2
{[%clk 0:00:38.8]} 24. Ra1 {[%clk 0:00:25.2]} 24... Bb3 {[%clk 0:00:36.7]} 25.
Nd6 {[%clk 0:00:13.4]} 25... Ra8 {[%clk 0:00:31.7]} 26. Reb1 {[%clk 0:00:11.7]}
26... Bd5 {[%clk 0:00:31]} 27. Rb5 {[%clk 0:00:11.5]} 27... Rfb8 {[%clk
0:00:06.3]} 28. Ra5 {[%clk 0:00:10.8]} 28... a6 {[%clk 0:00:06.2]} 29. h4 {[%clk
0:00:09.9]} 29... Nb4 {[%clk 0:00:06.6]} 30. h5 {[%clk 0:00:09.3]} 30... h6
{[%clk 0:00:06.3]} 31. R1a3 {[%clk 0:00:08.4]} 31... Nc6 {[%clk 0:00:05.8]} 32.
Rxa6 {[%clk 0:00:08.5]} 32... Rxa6 {[%clk 0:00:06.7]} 33. Rxa6 {[%clk
0:00:08.9]} 33... Nxe5 {[%clk 0:00:07.3]} 34. f3 {[%clk 0:00:09.4]} 34... Nc4
{[%clk 0:00:03.9]} 35. Nxc4 {[%clk 0:00:04.6]} 35... Bxc4 {[%clk 0:00:04.8]} 36.
Ra5 {[%clk 0:00:05.2]} 36... Bd5 {[%clk 0:00:04.4]} 37. Kf2 {[%clk 0:00:04.3]}
37... Rc8 {[%clk 0:00:03.9]} 38. Kg3 {[%clk 0:00:03.7]} 38... f6 {[%clk
0:00:04.2]} 39. Ra3 {[%clk 0:00:03.1]} 39... Kh7 {[%clk 0:00:03.5]} 40. Ra7
{[%clk 0:00:03]} 40... Kg8 {[%clk 0:00:03.4]} 41. Rd7 {[%clk 0:00:02.7]} 41...
Rc4 {[%clk 0:00:03]} 42. Rd8+ {[%clk 0:00:02.6]} 42... Kf7 {[%clk 0:00:02.9]}
43. Rd7+ {[%clk 0:00:03]} 43... Kg8 {[%clk 0:00:03.4]} 44. Rd8+ {[%clk
0:00:03.4]} 44... Kh7 {[%clk 0:00:03.6]} 45. Rd7 {[%clk 0:00:03.9]} 45... Ra4
{[%clk 0:00:03.1]} 46. Bc5 {[%clk 0:00:03.1]} 46... Rc4 {[%clk 0:00:02.8]} 47.
Bf8 {[%clk 0:00:02.9]} 47... Kg8 {[%clk 0:00:02.5]} 48. Bxg7 {[%clk 0:00:03.2]}
48... Bc6 {[%clk 0:00:03]} 49. Re7 {[%clk 0:00:03.4]} 49... Rc5 {[%clk
0:00:03.1]} 50. Bxf6 {[%clk 0:00:03.4]} 50... Rxh5 {[%clk 0:00:02]} 51. Rxe6
{[%clk 0:00:03.9]} 51... Bd7 {[%clk 0:00:01.6]} 52. Rd6 {[%clk 0:00:04.2]} 52...
Bf5 {[%clk 0:00:01.9]} 53. Kf4 {[%clk 0:00:04.5]} 53... Bg6 {[%clk 0:00:01.9]}
54. g4 {[%clk 0:00:04.5]} 54... Rb5 {[%clk 0:00:02]} 55. Be5 {[%clk 0:00:04.8]}
55... Kh7 {[%clk 0:00:01.4]} 56. Rd7+ {[%clk 0:00:05]} 1-0

[Event "Late-Titled-Tuesday-Blitz-April-02-2024"]
[Site "Chess.com"]
[Date "2024.04.02"]
[Round "11"]
[White "Viktoker"]
[Black "UK_23"]
[Result "0-1"]
[WhiteElo "2494"]
[BlackElo "2412"]
[TimeControl "180+1"]
[EndTime "16:04:58 PDT"]
[Termination "UK_23 won on time"]

1. d4 {[%clk 0:02:54.5]} 1... d5 {[%clk 0:03:00.1]} 2. c4 {[%clk 0:02:52.4]}
2... e6 {[%clk 0:03:00.7]} 3. Nc3 {[%clk 0:02:52.3]} 3... Nf6 {[%clk 0:03:01.3]}
4. cxd5 {[%clk 0:02:52.2]} 4... exd5 {[%clk 0:03:02.2]} 5. Bg5 {[%clk
0:02:51.6]} 5... Be7 {[%clk 0:03:01.1]} 6. e3 {[%clk 0:02:52]} 6... O-O {[%clk
0:03:01.6]} 7. Bd3 {[%clk 0:02:51.9]} 7... Re8 {[%clk 0:03:01.9]} 8. Nge2 {[%clk
0:02:51.9]} 8... c6 {[%clk 0:03:00.9]} 9. O-O {[%clk 0:02:50.6]} 9... Nbd7
{[%clk 0:03:00.9]} 10. Qc2 {[%clk 0:02:50.5]} 10... g6 {[%clk 0:03:00.8]} 11. f3
{[%clk 0:02:49.7]} 11... b5 {[%clk 0:03:00.8]} 12. Rae1 {[%clk 0:02:48.4]} 12...
Bb7 {[%clk 0:02:58]} 13. Kh1 {[%clk 0:02:47.3]} 13... Rc8 {[%clk 0:02:57]} 14.
a3 {[%clk 0:02:43.3]} 14... a5 {[%clk 0:02:56.5]} 15. Ng3 {[%clk 0:02:31.4]}
15... b4 {[%clk 0:02:55.5]} 16. Na4 {[%clk 0:02:31.3]} 16... c5 {[%clk
0:02:53.9]} 17. Nxc5 {[%clk 0:02:28.7]} 17... Nxc5 {[%clk 0:02:49.5]} 18. dxc5
{[%clk 0:02:29.6]} 18... Bxc5 {[%clk 0:02:47.7]} 19. Bb5 {[%clk 0:02:25]} 19...
Bxe3 {[%clk 0:02:38.4]} 20. Rxe3 {[%clk 0:02:00.1]} 20... Rxe3 {[%clk
0:02:27.1]} 21. Qd2 {[%clk 0:01:58.9]} 21... d4 {[%clk 0:02:24.3]} 22. Bxe3
{[%clk 0:01:53.9]} 22... dxe3 {[%clk 0:02:25.2]} 23. Qxe3 {[%clk 0:01:54.8]}
23... Rc2 {[%clk 0:02:10.4]} 24. a4 {[%clk 0:01:40.2]} 24... Ng4 {[%clk
0:01:57.6]} 25. fxg4 {[%clk 0:01:27.5]} 25... Bxg2+ {[%clk 0:01:57]} 26. Kg1
{[%clk 0:01:27.3]} 26... Bxf1 {[%clk 0:01:47.3]} 27. Bxf1 {[%clk 0:01:27.8]}
27... Rxb2 {[%clk 0:01:45.9]} 28. Ne4 {[%clk 0:01:24.7]} 28... Qh4 {[%clk
0:01:22.9]} 29. Qf4 {[%clk 0:01:20]} 29... Qd8 {[%clk 0:00:38.8]} 30. Qe5 {[%clk
0:00:48.5]} 30... Qb6+ {[%clk 0:00:26.9]} 31. Kh1 {[%clk 0:00:28.7]} 31... Qc6
{[%clk 0:00:26.4]} 32. g5 {[%clk 0:00:16.7]} 32... b3 {[%clk 0:00:19.8]} 33. Kg1
{[%clk 0:00:12.5]} 33... Qb6+ {[%clk 0:00:19.7]} 34. Kh1 {[%clk 0:00:11.7]}
34... Qc6 {[%clk 0:00:19.3]} 35. h3 {[%clk 0:00:11.6]} 35... Rf2 {[%clk
0:00:13.3]} 36. Bg2 {[%clk 0:00:10.5]} 36... Qc1+ {[%clk 0:00:10.3]} 37. Kh2
{[%clk 0:00:10.6]} 37... Qf4+ {[%clk 0:00:11]} 38. Qxf4 {[%clk 0:00:10.3]} 38...
Rxf4 {[%clk 0:00:11.9]} 39. Nf6+ {[%clk 0:00:09.3]} 39... Kg7 {[%clk 0:00:11.7]}
40. Nd5 {[%clk 0:00:08.2]} 40... Rxa4 {[%clk 0:00:11.5]} 41. Nc3 {[%clk
0:00:07]} 41... Rb4 {[%clk 0:00:11]} 42. Nb1 {[%clk 0:00:06.5]} 42... a4 {[%clk
0:00:10.8]} 43. Bd5 {[%clk 0:00:05.1]} 43... b2 {[%clk 0:00:11]} 44. Kg3 {[%clk
0:00:04.3]} 44... f6 {[%clk 0:00:11.7]} 45. gxf6+ {[%clk 0:00:03.9]} 45... Kxf6
{[%clk 0:00:12.6]} 46. Nc3 {[%clk 0:00:03.2]} 46... a3 {[%clk 0:00:11.4]} 47.
Ba2 {[%clk 0:00:03.2]} 47... Ke5 {[%clk 0:00:10.5]} 48. Nb1 {[%clk 0:00:02.5]}
48... Kd4 {[%clk 0:00:10.2]} 49. Kf3 {[%clk 0:00:02.8]} 49... Kd3 {[%clk
0:00:09.9]} 50. Kf2 {[%clk 0:00:02.7]} 50... h5 {[%clk 0:00:07.4]} 51. Kf3
{[%clk 0:00:03]} 51... g5 {[%clk 0:00:07.6]} 52. Kg3 {[%clk 0:00:03.5]} 52...
h4+ {[%clk 0:00:07.5]} 53. Kf3 {[%clk 0:00:04]} 53... Rf4+ {[%clk 0:00:07.6]}
54. Kg2 {[%clk 0:00:04.1]} 54... Kc2 {[%clk 0:00:07.4]} 55. Kg1 {[%clk
0:00:03.3]} 55... Rf3 {[%clk 0:00:05.2]} 56. Kg2 {[%clk 0:00:03.9]} 56... Rg3+
{[%clk 0:00:05.4]} 57. Kh2 {[%clk 0:00:03.3]} 57... Kc1 {[%clk 0:00:05.8]} 0-1

[Event "Late-Titled-Tuesday-Blitz-April-02-2024"]
[Site "Chess.com"]
[Date "2024.04.02"]
[Round "11"]
[White "Revan_2002"]
[Black "Shahdad2007"]
[Result "0-1"]
[WhiteElo "2731"]
[BlackElo "2618"]
[TimeControl "180+1"]
[EndTime "16:05:00 PDT"]
[Termination "Shahdad2007 won by resignation"]

1. b3 {[%clk 0:03:00.9]} 1... b6 {[%clk 0:02:59.6]} 2. Bb2 {[%clk 0:03:01.8]}
2... Bb7 {[%clk 0:03:00.5]} 3. e3 {[%clk 0:03:02.1]} 3... Nf6 {[%clk 0:03:01.1]}
4. f4 {[%clk 0:03:02.2]} 4... g6 {[%clk 0:02:55.8]} 5. Nf3 {[%clk 0:03:02.7]}
5... Bg7 {[%clk 0:02:56.2]} 6. g3 {[%clk 0:03:03.3]} 6... O-O {[%clk 0:02:56.2]}
7. Bg2 {[%clk 0:03:03.9]} 7... c5 {[%clk 0:02:56.6]} 8. O-O {[%clk 0:03:04.5]}
8... Nc6 {[%clk 0:02:55.3]} 9. Qe2 {[%clk 0:03:05]} 9... d5 {[%clk 0:02:55.2]}
10. d3 {[%clk 0:03:05.6]} 10... d4 {[%clk 0:02:55.6]} 11. e4 {[%clk 0:03:03]}
11... Ng4 {[%clk 0:02:52.8]} 12. Bc1 {[%clk 0:03:03.1]} 12... Ne3 {[%clk
0:02:52.6]} 13. Bxe3 {[%clk 0:03:03.1]} 13... dxe3 {[%clk 0:02:52.8]} 14. c3
{[%clk 0:03:03.8]} 14... Nb4 {[%clk 0:02:38.4]} 15. Rd1 {[%clk 0:03:03]} 15...
Ba6 {[%clk 0:02:33.9]} 16. Ne1 {[%clk 0:02:59.6]} 16... Nc6 {[%clk 0:02:24.2]}
17. Qxe3 {[%clk 0:02:55]} 17... Qd7 {[%clk 0:02:23.4]} 18. e5 {[%clk 0:02:49.8]}
18... Rad8 {[%clk 0:02:22.4]} 19. Nf3 {[%clk 0:02:44.8]} 19... f6 {[%clk
0:02:16.8]} 20. d4 {[%clk 0:02:43.1]} 20... fxe5 {[%clk 0:02:14]} 21. fxe5
{[%clk 0:02:40.8]} 21... cxd4 {[%clk 0:01:47.2]} 22. cxd4 {[%clk 0:02:41.7]}
22... Nb4 {[%clk 0:01:47.3]} 23. Na3 {[%clk 0:02:41.3]} 23... Qg4 {[%clk
0:01:40.4]} 24. Rac1 {[%clk 0:02:29.9]} 24... Bb7 {[%clk 0:01:36.2]} 25. Ne1
{[%clk 0:01:59.5]} 25... Bxg2 {[%clk 0:01:17.8]} 26. Nxg2 {[%clk 0:01:41.1]}
26... Nd5 {[%clk 0:01:16.6]} 27. Qd2 {[%clk 0:01:31.5]} 27... Qh5 {[%clk
0:00:50]} 28. Qd3 {[%clk 0:01:01.9]} 28... Bh6 {[%clk 0:00:39.2]} 29. Rb1 {[%clk
0:01:01.1]} 29... Rf3 {[%clk 0:00:36.3]} 30. Qc4 {[%clk 0:00:57.4]} 30... Kh8
{[%clk 0:00:29.5]} 31. Rf1 {[%clk 0:00:47.4]} 31... Nc3 {[%clk 0:00:22.3]} 32.
Rbe1 {[%clk 0:00:22.9]} 32... Rdf8 {[%clk 0:00:22]} 33. Rxf3 {[%clk 0:00:19.8]}
33... Qxf3 {[%clk 0:00:22.9]} 34. Rf1 {[%clk 0:00:09.8]} 34... Ne2+ {[%clk
0:00:20.7]} 35. Qxe2 {[%clk 0:00:08.9]} 35... Qxe2 {[%clk 0:00:21.6]} 36. Rxf8+
{[%clk 0:00:09.1]} 36... Bxf8 {[%clk 0:00:22.5]} 37. Nc4 {[%clk 0:00:09.2]}
37... e6 {[%clk 0:00:20.8]} 38. Nf4 {[%clk 0:00:08.6]} 38... Qd1+ {[%clk
0:00:20.7]} 39. Kg2 {[%clk 0:00:08.3]} 39... Qxd4 {[%clk 0:00:21.3]} 40. h4
{[%clk 0:00:08.1]} 40... Bh6 {[%clk 0:00:20.5]} 41. Kf3 {[%clk 0:00:06.4]} 41...
Bxf4 {[%clk 0:00:20.3]} 42. gxf4 {[%clk 0:00:07.3]} 42... Qa1 {[%clk 0:00:14.2]}
43. Nd6 {[%clk 0:00:04.4]} 43... Qxa2 {[%clk 0:00:14.2]} 44. Kg4 {[%clk
0:00:05.1]} 44... Qxb3 {[%clk 0:00:14.1]} 45. Kg5 {[%clk 0:00:05.5]} 45... Qg3+
{[%clk 0:00:14.4]} 46. Kf6 {[%clk 0:00:05.9]} 46... Qxf4+ {[%clk 0:00:15]} 47.
Kxe6 {[%clk 0:00:06.6]} 47... Qxh4 {[%clk 0:00:15.3]} 48. Kf7 {[%clk 0:00:05.6]}
48... Qf4+ {[%clk 0:00:14.7]} 49. Ke6 {[%clk 0:00:03.7]} 49... Kg8 {[%clk
0:00:14.8]} 50. Kd5 {[%clk 0:00:03.9]} 50... h5 {[%clk 0:00:15]} 51. e6 {[%clk
0:00:04]} 51... Kf8 {[%clk 0:00:15.1]} 52. Kc6 {[%clk 0:00:02.5]} 52... Qf6
{[%clk 0:00:14.8]} 53. Kd7 {[%clk 0:00:02.4]} 53... Qe7+ {[%clk 0:00:15.2]} 54.
Kc6 {[%clk 0:00:03.3]} 54... Qxe6 {[%clk 0:00:16]} 55. Kc7 {[%clk 0:00:03.7]}
55... Qxd6+ {[%clk 0:00:16.3]} 56. Kxd6 {[%clk 0:00:03.7]} 56... h4 {[%clk
0:00:17.2]} 0-1

[Event "Late-Titled-Tuesday-Blitz-April-02-2024"]
[Site "Chess.com"]
[Date "2024.04.02"]
[Round "11"]
[White "Msb2"]
[Black "Hikaru"]
[Result "0-1"]
[WhiteElo "3039"]
[BlackElo "3258"]
[TimeControl "180+1"]
[EndTime "16:05:02 PDT"]
[Termination "Hikaru won by resignation"]

1. d4 {[%clk 0:03:00.9]} 1... b6 {[%clk 0:03:00.1]} 2. c4 {[%clk 0:03:00.5]}
2... e6 {[%clk 0:03:00.2]} 3. a3 {[%clk 0:03:00.4]} 3... g6 {[%clk 0:02:56.6]}
4. Nc3 {[%clk 0:02:59.9]} 4... Bg7 {[%clk 0:02:57.3]} 5. e4 {[%clk 0:03:00.4]}
5... d6 {[%clk 0:02:57.7]} 6. Nf3 {[%clk 0:03:00]} 6... Nd7 {[%clk 0:02:58.2]}
7. Be2 {[%clk 0:02:59]} 7... a6 {[%clk 0:02:57.7]} 8. O-O {[%clk 0:02:57.2]}
8... Ne7 {[%clk 0:02:58.3]} 9. Be3 {[%clk 0:02:56.2]} 9... h6 {[%clk 0:02:57.6]}
10. Qd2 {[%clk 0:02:52.9]} 10... g5 {[%clk 0:02:56.9]} 11. Ne1 {[%clk
0:02:42.2]} 11... Ng6 {[%clk 0:02:55.8]} 12. Nd3 {[%clk 0:02:41.8]} 12... c5
{[%clk 0:02:47.6]} 13. d5 {[%clk 0:02:30.8]} 13... Nde5 {[%clk 0:02:47.5]} 14.
Nxe5 {[%clk 0:02:22.7]} 14... Bxe5 {[%clk 0:02:47.5]} 15. g3 {[%clk 0:02:23.3]}
15... Qf6 {[%clk 0:02:46.3]} 16. f4 {[%clk 0:02:19.7]} 16... gxf4 {[%clk
0:02:45.7]} 17. gxf4 {[%clk 0:02:20.6]} 17... Bd4 {[%clk 0:02:46.2]} 18. e5
{[%clk 0:02:04.9]} 18... dxe5 {[%clk 0:02:14.7]} 19. Ne4 {[%clk 0:02:04]} 19...
Qh4 {[%clk 0:02:14.8]} 20. Bxd4 {[%clk 0:01:50.6]} 20... exd4 {[%clk 0:02:11.8]}
21. Rae1 {[%clk 0:01:43.9]} 21... O-O {[%clk 0:01:46.9]} 22. Ng3 {[%clk
0:01:10.3]} 22... exd5 {[%clk 0:01:43.3]} 23. cxd5 {[%clk 0:01:09]} 23... Bh3
{[%clk 0:01:41.7]} 24. Rf2 {[%clk 0:01:07.1]} 24... Rfe8 {[%clk 0:01:32.8]} 25.
d6 {[%clk 0:01:02.1]} 25... Re3 {[%clk 0:01:31.3]} 26. Bf1 {[%clk 0:00:53.4]}
26... Rae8 {[%clk 0:01:24.6]} 27. Ree2 {[%clk 0:00:44.9]} 27... Bg4 {[%clk
0:00:59.6]} 28. f5 {[%clk 0:00:35.7]} 28... Ne5 {[%clk 0:00:51]} 29. Rxe3 {[%clk
0:00:20.6]} 29... dxe3 {[%clk 0:00:51.9]} 30. Qxe3 {[%clk 0:00:21.5]} 30... Nf3+
{[%clk 0:00:51.7]} 31. Rxf3 {[%clk 0:00:22.1]} 31... Rxe3 {[%clk 0:00:52]} 32.
Rxe3 {[%clk 0:00:23]} 32... Bd1 {[%clk 0:00:38.1]} 33. Rd3 {[%clk 0:00:18.8]}
33... Ba4 {[%clk 0:00:36.1]} 34. d7 {[%clk 0:00:18.3]} 34... Qd8 {[%clk
0:00:34.4]} 35. f6 {[%clk 0:00:14.6]} 35... Bxd7 {[%clk 0:00:31.5]} 36. Bh3
{[%clk 0:00:14.7]} 36... Qxf6 {[%clk 0:00:32.2]} 37. Rxd7 {[%clk 0:00:14.9]}
37... Qxb2 {[%clk 0:00:32.4]} 38. Nf5 {[%clk 0:00:10]} 38... Qxa3 {[%clk
0:00:29.4]} 39. Kg2 {[%clk 0:00:05.3]} 39... Qb2+ {[%clk 0:00:26.5]} 40. Kg3
{[%clk 0:00:05.4]} 40... Qf6 {[%clk 0:00:26]} 41. Rb7 {[%clk 0:00:04]} 41... c4
{[%clk 0:00:24.7]} 42. Bg4 {[%clk 0:00:04.2]} 42... c3 {[%clk 0:00:21.9]} 43.
Rb8+ {[%clk 0:00:04.8]} 43... Kh7 {[%clk 0:00:22]} 44. Rc8 {[%clk 0:00:05.7]}
44... h5 {[%clk 0:00:19.6]} 45. Bh3 {[%clk 0:00:05.8]} 45... b5 {[%clk
0:00:18.4]} 46. Ne3 {[%clk 0:00:03.8]} 46... Qe5+ {[%clk 0:00:15.6]} 47. Kf3
{[%clk 0:00:04.1]} 47... b4 {[%clk 0:00:16.2]} 48. Bf5+ {[%clk 0:00:04.5]} 48...
Kg7 {[%clk 0:00:16.9]} 49. Bc2 {[%clk 0:00:04.3]} 49... Qxh2 {[%clk 0:00:15.1]}
50. Nf5+ {[%clk 0:00:03.5]} 50... Kf6 {[%clk 0:00:15.6]} 51. Be4 {[%clk
0:00:03.6]} 51... Qh3+ {[%clk 0:00:14.4]} 52. Kf4 {[%clk 0:00:04.1]} 52... Qh2+
{[%clk 0:00:14.8]} 53. Kf3 {[%clk 0:00:04.7]} 53... a5 {[%clk 0:00:12.3]} 54.
Rc6+ {[%clk 0:00:04.8]} 54... Kg5 {[%clk 0:00:12.8]} 55. Ne3 {[%clk 0:00:03]}
55... Qf4+ {[%clk 0:00:12.9]} 56. Ke2 {[%clk 0:00:02.2]} 56... Qxe4 {[%clk
0:00:13.8]} 57. Rc5+ {[%clk 0:00:01.8]} 57... Kg6 {[%clk 0:00:13.7]} 58. Rxa5
{[%clk 0:00:01.4]} 58... b3 {[%clk 0:00:14.2]} 59. Ra6+ {[%clk 0:00:02.3]} 59...
Kh7 {[%clk 0:00:13.4]} 60. Rh6+ {[%clk 0:00:02.1]} 60... Kxh6 {[%clk 0:00:13.1]}
61. Kf2 {[%clk 0:00:03]} 61... Kg6 {[%clk 0:00:13.2]} 62. Kg3 {[%clk 0:00:03.5]}
62... Qxe3+ {[%clk 0:00:13.4]} 63. Kh4 {[%clk 0:00:04.4]} 63... Qg5+ {[%clk
0:00:13.8]} 64. Kh3 {[%clk 0:00:04.9]} 64... c2 {[%clk 0:00:14.7]} 65. Kh2
{[%clk 0:00:05.7]} 65... b2 {[%clk 0:00:15.6]} 66. Kh3 {[%clk 0:00:06.6]} 66...
b1=Q {[%clk 0:00:16]} 67. Kh2 {[%clk 0:00:07.5]} 67... Qb3 {[%clk 0:00:15.8]}
68. Kh1 {[%clk 0:00:07.9]} 68... c1=Q+ {[%clk 0:00:16.3]} 69. Kh2 {[%clk
0:00:08.8]} 69... Qcc3 {[%clk 0:00:16.9]} 70. Kh1 {[%clk 0:00:09.7]} 70... f5
{[%clk 0:00:17]} 71. Kh2 {[%clk 0:00:10.6]} 71... f4 {[%clk 0:00:17.7]} 72. Kh1
{[%clk 0:00:11.5]} 72... f3 {[%clk 0:00:18.6]} 73. Kh2 {[%clk 0:00:12.4]} 73...
f2 {[%clk 0:00:19]} 0-1

[Event "Late-Titled-Tuesday-Blitz-April-02-2024"]
[Site "Chess.com"]
[Date "2024.04.02"]
[Round "11"]
[White "temus_galaktionov"]
[Black "bascheyaro"]
[Result "0-1"]
[WhiteElo "2869"]
[BlackElo "2848"]
[TimeControl "180+1"]
[EndTime "16:05:08 PDT"]
[Termination "bascheyaro won by checkmate"]

1. d4 {[%clk 0:03:00.9]} 1... d5 {[%clk 0:03:00.1]} 2. c4 {[%clk 0:02:58]} 2...
c6 {[%clk 0:03:00.4]} 3. Nf3 {[%clk 0:02:57.6]} 3... Nf6 {[%clk 0:03:00.8]} 4.
Qb3 {[%clk 0:02:56.8]} 4... Qb6 {[%clk 0:02:58.6]} 5. Nc3 {[%clk 0:02:55.7]}
5... dxc4 {[%clk 0:02:55.9]} 6. Qxc4 {[%clk 0:02:55.1]} 6... Bf5 {[%clk
0:02:56.2]} 7. g3 {[%clk 0:02:45.4]} 7... e6 {[%clk 0:02:56.4]} 8. Bg2 {[%clk
0:02:45.2]} 8... Nbd7 {[%clk 0:02:56.3]} 9. O-O {[%clk 0:02:44.7]} 9... Qb4
{[%clk 0:02:54.3]} 10. Nd2 {[%clk 0:02:36.6]} 10... Nb6 {[%clk 0:02:51.9]} 11.
Qb3 {[%clk 0:02:36.3]} 11... Qxb3 {[%clk 0:02:49.9]} 12. Nxb3 {[%clk 0:02:37.2]}
12... Bb4 {[%clk 0:02:48.5]} 13. a3 {[%clk 0:02:30.5]} 13... Bxc3 {[%clk
0:02:46.7]} 14. bxc3 {[%clk 0:02:31.4]} 14... Na4 {[%clk 0:02:30.3]} 15. Bd2
{[%clk 0:02:27.1]} 15... Ne4 {[%clk 0:02:25.1]} 16. Bxe4 {[%clk 0:02:26.4]}
16... Bxe4 {[%clk 0:02:26]} 17. f3 {[%clk 0:02:19.1]} 17... Bd5 {[%clk
0:02:17.5]} 18. Rab1 {[%clk 0:01:30]} 18... Bxb3 {[%clk 0:02:15.3]} 19. Rxb3
{[%clk 0:01:29.2]} 19... b5 {[%clk 0:02:16]} 20. e4 {[%clk 0:01:17.5]} 20... Nb6
{[%clk 0:02:13.8]} 21. Bf4 {[%clk 0:01:13.9]} 21... a5 {[%clk 0:02:12.3]} 22.
Bd6 {[%clk 0:00:59.6]} 22... a4 {[%clk 0:02:11.4]} 23. Rb4 {[%clk 0:00:52.2]}
23... Kd7 {[%clk 0:01:41.6]} 24. Bc5 {[%clk 0:00:49.5]} 24... Nc4 {[%clk
0:01:41.7]} 25. Ra1 {[%clk 0:00:48.9]} 25... f6 {[%clk 0:01:36.6]} 26. Kf2
{[%clk 0:00:48.3]} 26... h5 {[%clk 0:01:34.7]} 27. Ke2 {[%clk 0:00:46.7]} 27...
h4 {[%clk 0:01:19.8]} 28. g4 {[%clk 0:00:46.5]} 28... g5 {[%clk 0:01:19.2]} 29.
Rbb1 {[%clk 0:00:45.6]} 29... f5 {[%clk 0:01:18.6]} 30. Rg1 {[%clk 0:00:40.1]}
30... Rhg8 {[%clk 0:01:15.5]} 31. Rae1 {[%clk 0:00:32.3]} 31... f4 {[%clk
0:00:50.2]} 32. e5 {[%clk 0:00:27.2]} 32... Ke8 {[%clk 0:00:48.4]} 33. Kd3
{[%clk 0:00:24.7]} 33... Kf7 {[%clk 0:00:47.9]} 34. Bb4 {[%clk 0:00:20.1]} 34...
Rgd8 {[%clk 0:00:47.9]} 35. Kc2 {[%clk 0:00:20.3]} 35... Rd5 {[%clk 0:00:48.1]}
36. Re4 {[%clk 0:00:19.6]} 36... Ne3+ {[%clk 0:00:44.7]} 37. Kb2 {[%clk
0:00:19.5]} 37... Rad8 {[%clk 0:00:42.3]} 38. Re1 {[%clk 0:00:18.9]} 38... Nc4+
{[%clk 0:00:39.1]} 39. Kc2 {[%clk 0:00:18.8]} 39... h3 {[%clk 0:00:39.1]} 40.
R1e2 {[%clk 0:00:18.6]} 40... R8d7 {[%clk 0:00:36.5]} 41. Re1 {[%clk 0:00:18.3]}
41... Kg6 {[%clk 0:00:36.8]} 42. R1e2 {[%clk 0:00:18.5]} 42... Rd8 {[%clk
0:00:36.9]} 43. Re1 {[%clk 0:00:18.8]} 43... Nb6 {[%clk 0:00:37]} 44. R1e2
{[%clk 0:00:18.7]} 44... Nd7 {[%clk 0:00:37]} 45. Bd6 {[%clk 0:00:16.7]} 45...
c5 {[%clk 0:00:35.5]} 46. dxc5 {[%clk 0:00:15.4]} 46... Nxc5 {[%clk 0:00:35.9]}
47. Rd4 {[%clk 0:00:13.8]} 47... Rxd4 {[%clk 0:00:28.2]} 48. cxd4 {[%clk
0:00:14.7]} 48... Nb3 {[%clk 0:00:28.7]} 49. Kd3 {[%clk 0:00:14.6]} 49... Nc1+
{[%clk 0:00:29.1]} 50. Kd2 {[%clk 0:00:14.5]} 50... Nxe2 {[%clk 0:00:29.7]} 51.
Kxe2 {[%clk 0:00:15.4]} 51... Rc8 {[%clk 0:00:30.3]} 52. Bc5 {[%clk 0:00:15.3]}
52... Kf7 {[%clk 0:00:30.4]} 53. Kd3 {[%clk 0:00:15.4]} 53... Ke8 {[%clk
0:00:30.9]} 54. Kc3 {[%clk 0:00:14.6]} 54... Kd7 {[%clk 0:00:30.8]} 55. Kb4
{[%clk 0:00:15.2]} 55... Kc6 {[%clk 0:00:31.3]} 56. Be7 {[%clk 0:00:15.7]} 56...
Kd5 {[%clk 0:00:30.9]} 57. Bxg5 {[%clk 0:00:15.8]} 57... Rc4+ {[%clk 0:00:30.5]}
58. Kxb5 {[%clk 0:00:15.7]} 58... Rxd4 {[%clk 0:00:31.1]} 59. Bf6 {[%clk
0:00:16.1]} 59... Rd2 {[%clk 0:00:31.3]} 60. Bg5 {[%clk 0:00:14.1]} 60... Rxh2
{[%clk 0:00:31.4]} 61. Bxf4 {[%clk 0:00:14.5]} 61... Rf2 {[%clk 0:00:31]} 62. g5
{[%clk 0:00:13.3]} 62... Rxf3 {[%clk 0:00:31.4]} 63. Bh2 {[%clk 0:00:13.5]}
63... Rf2 {[%clk 0:00:31.4]} 64. Bg3 {[%clk 0:00:12.8]} 64... Rg2 {[%clk
0:00:32]} 65. Bf4 {[%clk 0:00:13.5]} 65... Rxg5 {[%clk 0:00:32.3]} 66. Bxg5
{[%clk 0:00:12]} 66... h2 {[%clk 0:00:32.8]} 67. Bf6 {[%clk 0:00:12.6]} 67...
h1=Q {[%clk 0:00:33.3]} 68. Kxa4 {[%clk 0:00:13.5]} 68... Kc4 {[%clk 0:00:33.2]}
69. Ka5 {[%clk 0:00:14]} 69... Qb7 {[%clk 0:00:33.1]} 70. a4 {[%clk 0:00:14.6]}
70... Qa7# {[%clk 0:00:31.3]} 0-1